[Event "Late-Titled-Tuesday-Blitz-March-12-2024"]
[Site "Chess.com"]
[Date "2024.03.12"]
[Round "8"]
[White "janhelmer03"]
[Black "LeoWin2012"]
[Result "1-0"]
[WhiteElo "2400"]
[BlackElo "2194"]
[TimeControl "180+1"]
[EndTime "15:27:40 PDT"]
[Termination "janhelmer03 won on time"]

1. Nf3 {[%clk 0:02:54.7]} 1... d6 {[%clk 0:03:00.9]} 2. d4 {[%clk 0:02:54.2]}
2... g6 {[%clk 0:03:01.8]} 3. e4 {[%clk 0:02:54.7]} 3... Bg7 {[%clk 0:02:57.7]}
4. Nc3 {[%clk 0:02:54.4]} 4... Nd7 {[%clk 0:02:57.5]} 5. Be3 {[%clk 0:02:54.4]}
5... c6 {[%clk 0:02:57.5]} 6. Qd2 {[%clk 0:02:52.4]} 6... b5 {[%clk 0:02:57.2]}
7. Bd3 {[%clk 0:02:49.1]} 7... Ngf6 {[%clk 0:02:55.9]} 8. h3 {[%clk 0:02:37.1]}
8... Bb7 {[%clk 0:02:52]} 9. e5 {[%clk 0:02:11.3]} 9... dxe5 {[%clk 0:02:49.7]}
10. dxe5 {[%clk 0:02:12.2]} 10... Ng8 {[%clk 0:02:49.7]} 11. e6 {[%clk
0:02:12.2]} 11... fxe6 {[%clk 0:02:48.2]} 12. Ng5 {[%clk 0:02:12.5]} 12... Nf8
{[%clk 0:02:40.1]} 13. O-O {[%clk 0:02:11.5]} 13... Nf6 {[%clk 0:02:27.1]} 14.
Rad1 {[%clk 0:01:55.8]} 14... Nd5 {[%clk 0:02:12.8]} 15. Bc5 {[%clk 0:01:44.2]}
15... Nxc3 {[%clk 0:02:04.5]} 16. bxc3 {[%clk 0:01:38.6]} 16... Qd5 {[%clk
0:02:04.1]} 17. Qe3 {[%clk 0:01:35.1]} 17... Qe5 {[%clk 0:01:52.4]} 18. Qxe5
{[%clk 0:01:29.5]} 18... Bxe5 {[%clk 0:01:51.4]} 19. Rfe1 {[%clk 0:01:26.1]}
19... Bf6 {[%clk 0:01:49.2]} 20. Nxe6 {[%clk 0:01:10.3]} 20... Nxe6 {[%clk
0:01:50.1]} 21. Rxe6 {[%clk 0:01:10.3]} 21... Kf7 {[%clk 0:01:38.3]} 22. Rde1
{[%clk 0:01:07.1]} 22... Rhe8 {[%clk 0:01:26.3]} 23. c4 {[%clk 0:01:04.4]} 23...
a6 {[%clk 0:01:18.5]} 24. g4 {[%clk 0:00:45.4]} 24... Bc8 {[%clk 0:00:42.8]} 25.
Rxc6 {[%clk 0:00:42.8]} 25... Bd7 {[%clk 0:00:40.7]} 26. Rc7 {[%clk 0:00:38.5]}
26... Rac8 {[%clk 0:00:32.1]} 27. Rxd7 {[%clk 0:00:21]} 27... Rxc5 {[%clk
0:00:30.2]} 28. cxb5 {[%clk 0:00:21.1]} 28... axb5 {[%clk 0:00:29.4]} 29. Rb7
{[%clk 0:00:20.4]} 29... Ra8 {[%clk 0:00:27.2]} 30. Rxb5 {[%clk 0:00:18.1]}
30... Rxb5 {[%clk 0:00:26.3]} 31. Bxb5 {[%clk 0:00:18.7]} 31... Ra3 {[%clk
0:00:22.1]} 32. Bc4+ {[%clk 0:00:18.3]} 32... Ke8 {[%clk 0:00:21.8]} 33. Bb3
{[%clk 0:00:19.2]} 33... Ra5 {[%clk 0:00:20.6]} 34. Kg2 {[%clk 0:00:18.9]} 34...
Kd7 {[%clk 0:00:20.5]} 35. f4 {[%clk 0:00:19.2]} 35... g5 {[%clk 0:00:18.4]} 36.
f5 {[%clk 0:00:19.2]} 36... Kc7 {[%clk 0:00:17.9]} 37. Kf3 {[%clk 0:00:19.8]}
37... Rc5 {[%clk 0:00:17.9]} 38. Re4 {[%clk 0:00:18.7]} 38... Rc3+ {[%clk
0:00:18]} 39. Re3 {[%clk 0:00:18.4]} 39... Rxe3+ {[%clk 0:00:17.2]} 40. Kxe3
{[%clk 0:00:19.3]} 40... Kb6 {[%clk 0:00:16.9]} 41. Ke4 {[%clk 0:00:19.8]} 41...
Kc5 {[%clk 0:00:16.5]} 42. a4 {[%clk 0:00:19.1]} 42... Bc3 {[%clk 0:00:12.6]}
43. Kd3 {[%clk 0:00:17.7]} 43... Be5 {[%clk 0:00:11.3]} 44. a5 {[%clk
0:00:17.4]} 44... Kb5 {[%clk 0:00:10.3]} 45. Ke4 {[%clk 0:00:18.1]} 45... Bf6
{[%clk 0:00:10.6]} 46. Kd5 {[%clk 0:00:18.7]} 46... Kxa5 {[%clk 0:00:10]} 47.
Ke6 {[%clk 0:00:18.8]} 47... Kb4 {[%clk 0:00:09.6]} 48. Kf7 {[%clk 0:00:19]}
48... Kc5 {[%clk 0:00:09.3]} 49. Kg8 {[%clk 0:00:18.4]} 49... h6 {[%clk
0:00:09.2]} 50. Kh7 {[%clk 0:00:19.1]} 50... Kd4 {[%clk 0:00:08.8]} 51. Kxh6
{[%clk 0:00:19.2]} 51... Ke3 {[%clk 0:00:08.9]} 52. h4 {[%clk 0:00:15.8]} 52...
gxh4 {[%clk 0:00:08.7]} 53. g5 {[%clk 0:00:16.5]} 53... Be5 {[%clk 0:00:06]} 54.
g6 {[%clk 0:00:16.4]} 54... h3 {[%clk 0:00:06.5]} 55. g7 {[%clk 0:00:15.9]}
55... h2 {[%clk 0:00:04.4]} 56. Bd5 {[%clk 0:00:15.8]} 56... Kd4 {[%clk
0:00:02.9]} 57. g8=Q {[%clk 0:00:15.3]} 57... Bf4+ {[%clk 0:00:01.6]} 58. Kh5
{[%clk 0:00:15.1]} 1-0

[Event "Late-Titled-Tuesday-Blitz-March-12-2024"]
[Site "Chess.com"]
[Date "2024.03.12"]
[Round "8"]
[White "IngOscarArdila"]
[Black "Kavyev_Ruslan"]
[Result "1-0"]
[WhiteElo "2350"]
[BlackElo "2485"]
[TimeControl "180+1"]
[EndTime "15:27:42 PDT"]
[Termination "IngOscarArdila won by checkmate"]

1. d4 {[%clk 0:03:00.1]} 1... d5 {[%clk 0:02:56.9]} 2. c4 {[%clk 0:02:59.8]}
2... e6 {[%clk 0:02:56.8]} 3. Nc3 {[%clk 0:03:00.1]} 3... Nf6 {[%clk 0:02:56.2]}
4. Bg5 {[%clk 0:03:00.1]} 4... Be7 {[%clk 0:02:55.9]} 5. Nf3 {[%clk 0:02:59.1]}
5... Nbd7 {[%clk 0:02:39.7]} 6. Qc2 {[%clk 0:02:58]} 6... c5 {[%clk 0:02:35.7]}
7. e3 {[%clk 0:02:54.8]} 7... h6 {[%clk 0:02:33.8]} 8. Bh4 {[%clk 0:02:54.3]}
8... O-O {[%clk 0:02:26.6]} 9. Be2 {[%clk 0:02:53.4]} 9... a6 {[%clk 0:02:25.5]}
10. a4 {[%clk 0:02:50.7]} 10... cxd4 {[%clk 0:02:04.6]} 11. Nxd4 {[%clk
0:02:50]} 11... Ne5 {[%clk 0:01:58.6]} 12. cxd5 {[%clk 0:02:39.9]} 12... Nxd5
{[%clk 0:01:55.3]} 13. Bxe7 {[%clk 0:02:34]} 13... Nxe7 {[%clk 0:01:55]} 14. O-O
{[%clk 0:02:33.5]} 14... Qc7 {[%clk 0:01:49.8]} 15. Rac1 {[%clk 0:02:30]} 15...
N7c6 {[%clk 0:01:31.2]} 16. Rfd1 {[%clk 0:02:19.5]} 16... Bd7 {[%clk 0:01:26.3]}
17. f4 {[%clk 0:02:17.2]} 17... Nxd4 {[%clk 0:01:22.5]} 18. Rxd4 {[%clk
0:02:12.1]} 18... Nc6 {[%clk 0:01:21.2]} 19. Rd2 {[%clk 0:02:02.2]} 19... Rfd8
{[%clk 0:01:17.7]} 20. Rcd1 {[%clk 0:02:00.2]} 20... Be8 {[%clk 0:01:07]} 21.
Bf3 {[%clk 0:01:58.2]} 21... Rxd2 {[%clk 0:01:04.4]} 22. Rxd2 {[%clk 0:01:46.5]}
22... Rd8 {[%clk 0:01:03.4]} 23. Ne4 {[%clk 0:01:33.5]} 23... Qb6 {[%clk
0:00:50.5]} 24. Kf2 {[%clk 0:01:25.8]} 24... e5 {[%clk 0:00:39.5]} 25. Rxd8
{[%clk 0:01:21.7]} 25... Qxd8 {[%clk 0:00:36.5]} 26. g3 {[%clk 0:01:14.5]} 26...
Nb4 {[%clk 0:00:34.9]} 27. Qc3 {[%clk 0:01:09]} 27... Nd3+ {[%clk 0:00:20.6]}
28. Ke2 {[%clk 0:00:46.6]} 28... Bxa4 {[%clk 0:00:20.3]} 29. Kf1 {[%clk
0:00:25.1]} 29... Bb5 {[%clk 0:00:20.4]} 30. Be2 {[%clk 0:00:24.7]} 30... exf4
{[%clk 0:00:19.6]} 31. gxf4 {[%clk 0:00:22.1]} 31... Qd7 {[%clk 0:00:13.5]} 32.
Kg2 {[%clk 0:00:05.9]} 32... Qd5 {[%clk 0:00:11.4]} 33. Bf3 {[%clk 0:00:06.1]}
33... Bc6 {[%clk 0:00:08.9]} 34. Nf6+ {[%clk 0:00:05.5]} 34... gxf6 {[%clk
0:00:08.4]} 35. Bxd5 {[%clk 0:00:05.8]} 35... Bxd5+ {[%clk 0:00:09.2]} 36. Kf1
{[%clk 0:00:06.2]} 36... Be4 {[%clk 0:00:07.2]} 37. Qxf6 {[%clk 0:00:06]} 37...
Kh7 {[%clk 0:00:02]} 38. Qxf7+ {[%clk 0:00:05.9]} 38... Kh8 {[%clk 0:00:01.6]}
39. Qf6+ {[%clk 0:00:06.1]} 39... Kg8 {[%clk 0:00:01.7]} 40. h4 {[%clk
0:00:06.7]} 40... Bh7 {[%clk 0:00:01.9]} 41. Qe6+ {[%clk 0:00:06.3]} 41... Kg7
{[%clk 0:00:01.8]} 42. Qe7+ {[%clk 0:00:06.2]} 42... Kh8 {[%clk 0:00:02.4]} 43.
Qxb7 {[%clk 0:00:06.2]} 43... Nc5 {[%clk 0:00:03]} 44. Qc8+ {[%clk 0:00:06.2]}
44... Kg7 {[%clk 0:00:03.4]} 45. Qxc5 {[%clk 0:00:06.3]} 45... Kf6 {[%clk
0:00:04.3]} 46. Qe5+ {[%clk 0:00:06.5]} 46... Kf7 {[%clk 0:00:04.4]} 47. Qc7+
{[%clk 0:00:06.3]} 47... Kg6 {[%clk 0:00:04.3]} 48. Qb6+ {[%clk 0:00:06.7]}
48... Kg7 {[%clk 0:00:04.6]} 49. Qxa6 {[%clk 0:00:06.5]} 49... Bg6 {[%clk
0:00:05.5]} 50. Qb7+ {[%clk 0:00:06.7]} 50... Bf7 {[%clk 0:00:06.4]} 51. Qc7
{[%clk 0:00:05.9]} 51... Kg8 {[%clk 0:00:07.3]} 52. Qe5 {[%clk 0:00:05.8]} 52...
Kf8 {[%clk 0:00:08.2]} 53. f5 {[%clk 0:00:06.3]} 53... Bh5 {[%clk 0:00:08.4]}
54. f6 {[%clk 0:00:06.5]} 54... Bf7 {[%clk 0:00:09.3]} 55. Qe7+ {[%clk
0:00:06.6]} 55... Kg8 {[%clk 0:00:09.8]} 56. e4 {[%clk 0:00:07.1]} 56... Bh5
{[%clk 0:00:09.6]} 57. Qg7# {[%clk 0:00:06.1]} 1-0

[Event "Late-Titled-Tuesday-Blitz-March-12-2024"]
[Site "Chess.com"]
[Date "2024.03.12"]
[Round "8"]
[White "GWR2024"]
[Black "wild3000"]
[Result "1/2-1/2"]
[WhiteElo "2186"]
[BlackElo "2391"]
[TimeControl "180+1"]
[EndTime "15:27:43 PDT"]
[Termination "Game drawn - insufficient material"]

1. e4 {[%clk 0:03:00.9]} 1... a6 {[%clk 0:02:59.6]} 2. d4 {[%clk 0:03:00.3]}
2... b5 {[%clk 0:03:00]} 3. c4 {[%clk 0:02:58.4]} 3... Bb7 {[%clk 0:03:00.9]} 4.
d5 {[%clk 0:02:57.8]} 4... e6 {[%clk 0:03:00.8]} 5. Nc3 {[%clk 0:02:57.3]} 5...
Nf6 {[%clk 0:02:59.7]} 6. Bg5 {[%clk 0:02:56]} 6... b4 {[%clk 0:02:59.1]} 7.
Nce2 {[%clk 0:02:52.2]} 7... Be7 {[%clk 0:02:58]} 8. Ng3 {[%clk 0:02:49.7]} 8...
Nxd5 {[%clk 0:02:53.8]} 9. exd5 {[%clk 0:02:41.7]} 9... Bxg5 {[%clk 0:02:53.6]}
10. Nf3 {[%clk 0:02:40]} 10... Bf6 {[%clk 0:02:52.7]} 11. Rb1 {[%clk 0:02:31.5]}
11... O-O {[%clk 0:02:51.6]} 12. Be2 {[%clk 0:02:26.5]} 12... d6 {[%clk
0:02:46.3]} 13. O-O {[%clk 0:02:25.2]} 13... Nd7 {[%clk 0:02:46.1]} 14. Nd4
{[%clk 0:02:15.4]} 14... exd5 {[%clk 0:02:43.8]} 15. Bf3 {[%clk 0:02:09.3]}
15... c6 {[%clk 0:02:32.6]} 16. cxd5 {[%clk 0:02:08.2]} 16... cxd5 {[%clk
0:02:32.7]} 17. Ndf5 {[%clk 0:02:01.3]} 17... Nb6 {[%clk 0:02:31.1]} 18. Ne3
{[%clk 0:01:54.6]} 18... Be5 {[%clk 0:02:14.3]} 19. Nxd5 {[%clk 0:01:53.7]}
19... Nxd5 {[%clk 0:02:15.2]} 20. Bxd5 {[%clk 0:01:53.2]} 20... Bxd5 {[%clk
0:02:16.1]} 21. Qxd5 {[%clk 0:01:53.5]} 21... Rc8 {[%clk 0:02:11.8]} 22. Ne4
{[%clk 0:01:49.9]} 22... Re8 {[%clk 0:02:05.8]} 23. f4 {[%clk 0:01:45.7]} 23...
Bf6 {[%clk 0:02:00.8]} 24. Rfd1 {[%clk 0:01:26]} 24... Rc2 {[%clk 0:01:53.6]}
25. Qd3 {[%clk 0:01:10.6]} 25... Rxb2 {[%clk 0:01:43.7]} 26. Rxb2 {[%clk
0:01:09.2]} 26... Bxb2 {[%clk 0:01:44.6]} 27. Nxd6 {[%clk 0:01:08.6]} 27... Qb6+
{[%clk 0:01:34.8]} 28. Kh1 {[%clk 0:01:07.5]} 28... Rf8 {[%clk 0:01:29.6]} 29.
Nc4 {[%clk 0:01:05.5]} 29... Qf6 {[%clk 0:01:29.5]} 30. Nxb2 {[%clk 0:01:00.5]}
30... Qxb2 {[%clk 0:01:28.9]} 31. Qxa6 {[%clk 0:01:00.7]} 31... h5 {[%clk
0:01:27.4]} 32. h3 {[%clk 0:00:59.2]} 32... Re8 {[%clk 0:01:16.7]} 33. Qd3
{[%clk 0:00:54.6]} 33... Re2 {[%clk 0:01:10]} 34. Qd8+ {[%clk 0:00:54.2]} 34...
Kh7 {[%clk 0:01:10]} 35. Qd5 {[%clk 0:00:54.5]} 35... g6 {[%clk 0:00:44]} 36.
Qxf7+ {[%clk 0:00:52.3]} 36... Qg7 {[%clk 0:00:43.7]} 37. Qxg7+ {[%clk
0:00:48.4]} 37... Kxg7 {[%clk 0:00:43.7]} 38. Rb1 {[%clk 0:00:48.4]} 38... Re4
{[%clk 0:00:42.3]} 39. g3 {[%clk 0:00:46.7]} 39... h4 {[%clk 0:00:42.2]} 40. Kg2
{[%clk 0:00:42]} 40... Kf6 {[%clk 0:00:37.7]} 41. Kf3 {[%clk 0:00:40.8]} 41...
Rc4 {[%clk 0:00:36.5]} 42. g4 {[%clk 0:00:34.3]} 42... Rc3+ {[%clk 0:00:36.6]}
43. Ke4 {[%clk 0:00:33.7]} 43... Rxh3 {[%clk 0:00:32.6]} 44. Rxb4 {[%clk
0:00:33.5]} 44... Ra3 {[%clk 0:00:32]} 45. Rb6+ {[%clk 0:00:31.5]} 45... Kg7
{[%clk 0:00:31.9]} 46. Rb2 {[%clk 0:00:30.1]} 46... h3 {[%clk 0:00:20.5]} 47. f5
{[%clk 0:00:28.1]} 47... Rg3 {[%clk 0:00:13.9]} 48. Kf4 {[%clk 0:00:20.4]} 48...
Rg2 {[%clk 0:00:13.8]} 49. Rb3 {[%clk 0:00:17.9]} 49... h2 {[%clk 0:00:12.9]}
50. Rh3 {[%clk 0:00:17.7]} 50... gxf5 {[%clk 0:00:12.2]} 51. Kxf5 {[%clk
0:00:16.1]} 51... Rxa2 {[%clk 0:00:12.2]} 52. g5 {[%clk 0:00:14.6]} 52... Rf2+
{[%clk 0:00:11.5]} 53. Kg4 {[%clk 0:00:14.4]} 53... Kg6 {[%clk 0:00:11.1]} 54.
Rh6+ {[%clk 0:00:13.5]} 54... Kg7 {[%clk 0:00:11]} 55. Rh3 {[%clk 0:00:13.1]}
55... Kg6 {[%clk 0:00:10.9]} 56. Rh6+ {[%clk 0:00:13.2]} 56... Kg7 {[%clk
0:00:11]} 57. Kg3 {[%clk 0:00:13.6]} 57... Ra2 {[%clk 0:00:10.8]} 58. Rxh2
{[%clk 0:00:12.1]} 58... Rxh2 {[%clk 0:00:10.2]} 59. Kxh2 {[%clk 0:00:12.6]}
59... Kg6 {[%clk 0:00:11.1]} 60. Kg3 {[%clk 0:00:12.9]} 60... Kxg5 {[%clk
0:00:12]} 1/2-1/2

[Event "Late-Titled-Tuesday-Blitz-March-12-2024"]
[Site "Chess.com"]
[Date "2024.03.12"]
[Round "8"]
[White "CrushingKings"]
[Black "TheAlienParty"]
[Result "1-0"]
[WhiteElo "2599"]
[BlackElo "2395"]
[TimeControl "180+1"]
[EndTime "15:27:44 PDT"]
[Termination "CrushingKings won by resignation"]

1. Nf3 {[%clk 0:02:58.8]} 1... d5 {[%clk 0:02:43.5]} 2. g3 {[%clk 0:02:56.7]}
2... Nf6 {[%clk 0:02:41.2]} 3. Bg2 {[%clk 0:02:56.6]} 3... Bf5 {[%clk
0:02:41.3]} 4. O-O {[%clk 0:02:56.4]} 4... c6 {[%clk 0:02:41.3]} 5. d3 {[%clk
0:02:56.3]} 5... Nbd7 {[%clk 0:02:37.2]} 6. Nh4 {[%clk 0:02:55.7]} 6... Bg4
{[%clk 0:02:34.7]} 7. h3 {[%clk 0:02:56.1]} 7... Bh5 {[%clk 0:02:34.6]} 8. g4
{[%clk 0:02:56.6]} 8... Bg6 {[%clk 0:02:34.6]} 9. f4 {[%clk 0:02:56.1]} 9... e6
{[%clk 0:02:25.9]} 10. Nxg6 {[%clk 0:02:55.2]} 10... hxg6 {[%clk 0:02:25.4]} 11.
e4 {[%clk 0:02:54.9]} 11... dxe4 {[%clk 0:02:23.1]} 12. dxe4 {[%clk 0:02:55.3]}
12... e5 {[%clk 0:02:22.9]} 13. f5 {[%clk 0:02:54.1]} 13... gxf5 {[%clk
0:02:20.9]} 14. exf5 {[%clk 0:02:51.3]} 14... Bc5+ {[%clk 0:02:20.1]} 15. Kh1
{[%clk 0:02:51.3]} 15... Qb6 {[%clk 0:02:14.9]} 16. Nc3 {[%clk 0:02:44.2]} 16...
Qb4 {[%clk 0:02:11.2]} 17. g5 {[%clk 0:02:30.1]} 17... Nh5 {[%clk 0:01:58.8]}
18. Ne4 {[%clk 0:02:30.3]} 18... O-O-O {[%clk 0:01:57.2]} 19. Qg4 {[%clk
0:02:17.5]} 19... f6 {[%clk 0:01:37.7]} 20. a3 {[%clk 0:02:04.7]} 20... Qb6
{[%clk 0:01:36.8]} 21. b4 {[%clk 0:01:51.1]} 21... Be7 {[%clk 0:01:35.8]} 22.
Rf3 {[%clk 0:01:47.6]} 22... fxg5 {[%clk 0:01:25.3]} 23. Be3 {[%clk 0:01:47.4]}
23... Qc7 {[%clk 0:01:23.7]} 24. Bxg5 {[%clk 0:01:38.7]} 24... Ndf6 {[%clk
0:01:22.2]} 25. Bxf6 {[%clk 0:01:28.2]} 25... Bxf6 {[%clk 0:01:15.6]} 26. Re1
{[%clk 0:01:20.9]} 26... Kb8 {[%clk 0:01:10.1]} 27. Nc5 {[%clk 0:01:20.9]} 27...
Nf4 {[%clk 0:01:08.8]} 28. Rxf4 {[%clk 0:01:16.7]} 28... exf4 {[%clk 0:01:08.3]}
29. Ne6 {[%clk 0:01:17]} 29... Qd6 {[%clk 0:00:56.9]} 30. Nxd8 {[%clk
0:01:14.1]} 30... Rxd8 {[%clk 0:00:56.6]} 31. Bf3 {[%clk 0:01:02.5]} 31... Rh8
{[%clk 0:00:49.7]} 32. Re4 {[%clk 0:00:47]} 32... Rh4 {[%clk 0:00:48.5]} 33. Qg2
{[%clk 0:00:43.6]} 33... Qd7 {[%clk 0:00:38.1]} 34. Bg4 {[%clk 0:00:42.9]} 34...
Kc7 {[%clk 0:00:33.2]} 35. Rxf4 {[%clk 0:00:41.7]} 35... Qd6 {[%clk 0:00:28]}
36. Re4 {[%clk 0:00:37.7]} 36... Rh8 {[%clk 0:00:26]} 37. Re6 {[%clk 0:00:33.6]}
37... Qf4 {[%clk 0:00:25.6]} 38. Qe2 {[%clk 0:00:30.1]} 38... Qc1+ {[%clk
0:00:16.5]} 39. Kg2 {[%clk 0:00:29.7]} 39... Rd8 {[%clk 0:00:14.6]} 40. Qf2
{[%clk 0:00:10.6]} 40... Rd2 {[%clk 0:00:13.9]} 41. Re2 {[%clk 0:00:11.2]} 41...
Bd4 {[%clk 0:00:09.7]} 42. Qf4+ {[%clk 0:00:11]} 42... Kb6 {[%clk 0:00:09.1]}
43. Qxd2 {[%clk 0:00:11.2]} 43... Qg1+ {[%clk 0:00:08]} 44. Kf3 {[%clk
0:00:11.8]} 44... Qh1+ {[%clk 0:00:05]} 45. Kf4 {[%clk 0:00:11.4]} 45... Qf1+
{[%clk 0:00:04.2]} 46. Kg5 {[%clk 0:00:10.6]} 46... Bf6+ {[%clk 0:00:03.9]} 47.
Kg6 {[%clk 0:00:10.9]} 47... Qg1 {[%clk 0:00:03.2]} 48. Qe3+ {[%clk 0:00:11.4]}
48... Qxe3 {[%clk 0:00:03.1]} 49. Rxe3 {[%clk 0:00:12.3]} 49... Kb5 {[%clk
0:00:03.7]} 50. Re6 {[%clk 0:00:11.8]} 50... b6 {[%clk 0:00:04]} 51. Rxf6 {[%clk
0:00:12]} 51... gxf6 {[%clk 0:00:04.5]} 52. h4 {[%clk 0:00:12.9]} 52... a5
{[%clk 0:00:04.8]} 53. bxa5 {[%clk 0:00:12.3]} 53... Kxa5 {[%clk 0:00:05.1]} 54.
h5 {[%clk 0:00:13.2]} 54... Ka4 {[%clk 0:00:05.8]} 55. h6 {[%clk 0:00:13.7]}
55... Kxa3 {[%clk 0:00:06.7]} 56. h7 {[%clk 0:00:14.4]} 56... Kb2 {[%clk
0:00:07.6]} 57. h8=Q {[%clk 0:00:14.7]} 57... Kxc2 {[%clk 0:00:08.5]} 58. Qxf6
{[%clk 0:00:15.3]} 58... b5 {[%clk 0:00:09.4]} 59. Qxc6+ {[%clk 0:00:15.8]}
59... Kd2 {[%clk 0:00:08.5]} 60. Qxb5 {[%clk 0:00:16.4]} 1-0

[Event "Late-Titled-Tuesday-Blitz-March-12-2024"]
[Site "Chess.com"]
[Date "2024.03.12"]
[Round "8"]
[White "Jospem"]
[Black "BilodeauA"]
[Result "0-1"]
[WhiteElo "3112"]
[BlackElo "3022"]
[TimeControl "180+1"]
[EndTime "15:27:47 PDT"]
[Termination "BilodeauA won by resignation"]

1. e4 {[%clk 0:03:00.9]} 1... e5 {[%clk 0:02:41.2]} 2. Nf3 {[%clk 0:02:59]} 2...
Nc6 {[%clk 0:02:41.7]} 3. Nc3 {[%clk 0:02:59.8]} 3... Nf6 {[%clk 0:02:41]} 4. h3
{[%clk 0:02:59.6]} 4... Bb4 {[%clk 0:02:30.5]} 5. a3 {[%clk 0:02:59.2]} 5...
Bxc3 {[%clk 0:02:30.4]} 6. dxc3 {[%clk 0:03:00.1]} 6... d6 {[%clk 0:02:30.5]} 7.
Bd3 {[%clk 0:02:59.6]} 7... O-O {[%clk 0:02:27.4]} 8. Bg5 {[%clk 0:02:59.3]}
8... Be6 {[%clk 0:02:23.1]} 9. Qd2 {[%clk 0:02:57.8]} 9... Nb8 {[%clk
0:02:21.6]} 10. O-O-O {[%clk 0:02:56.5]} 10... Nbd7 {[%clk 0:02:22.2]} 11. Bh4
{[%clk 0:02:50.4]} 11... Qb8 {[%clk 0:02:12.2]} 12. Ng5 {[%clk 0:02:29.3]} 12...
b5 {[%clk 0:02:12.3]} 13. f4 {[%clk 0:02:08.6]} 13... exf4 {[%clk 0:02:10.9]}
14. Qxf4 {[%clk 0:02:09.2]} 14... a5 {[%clk 0:02:04.8]} 15. Nf3 {[%clk
0:01:47.8]} 15... b4 {[%clk 0:02:02]} 16. e5 {[%clk 0:01:44]} 16... bxc3 {[%clk
0:01:53.4]} 17. bxc3 {[%clk 0:01:44.9]} 17... Nd5 {[%clk 0:01:27.8]} 18. Qe4
{[%clk 0:00:57.7]} 18... g6 {[%clk 0:01:27.4]} 19. Qe1 {[%clk 0:00:58.4]} 19...
Nc5 {[%clk 0:01:21.2]} 20. Bc4 {[%clk 0:00:51.8]} 20... Na4 {[%clk 0:01:15.4]}
21. Bxd5 {[%clk 0:00:41.6]} 21... Qb2+ {[%clk 0:01:14.4]} 22. Kd2 {[%clk
0:00:42.1]} 22... Bxd5 {[%clk 0:01:09.3]} 23. Ke3 {[%clk 0:00:38.8]} 23... c6
{[%clk 0:00:38.2]} 24. Bf6 {[%clk 0:00:35.6]} 24... Rfe8 {[%clk 0:00:37.6]} 25.
Qh4 {[%clk 0:00:32.6]} 25... Re6 {[%clk 0:00:32.5]} 26. Kf2 {[%clk 0:00:21.5]}
26... Nxc3 {[%clk 0:00:27.3]} 27. Qh6 {[%clk 0:00:08.4]} 27... Ne4+ {[%clk
0:00:26.7]} 28. Kg1 {[%clk 0:00:09]} 28... Nxf6 {[%clk 0:00:27.2]} 29. exf6
{[%clk 0:00:09.9]} 29... Qxf6 {[%clk 0:00:27.1]} 30. Ng5 {[%clk 0:00:09.9]}
30... Re2 {[%clk 0:00:20.8]} 31. Qxh7+ {[%clk 0:00:09.9]} 31... Kf8 {[%clk
0:00:21.5]} 32. Qh6+ {[%clk 0:00:10.8]} 32... Qg7 {[%clk 0:00:19]} 33. Qxg7+
{[%clk 0:00:03.3]} 33... Kxg7 {[%clk 0:00:19.9]} 34. Rh2 {[%clk 0:00:02.6]}
34... Rxc2 {[%clk 0:00:18.9]} 35. g4 {[%clk 0:00:03.3]} 35... Rxh2 {[%clk
0:00:18.6]} 36. Kxh2 {[%clk 0:00:04.2]} 36... Rb8 {[%clk 0:00:19.1]} 37. h4
{[%clk 0:00:04.3]} 37... Rb2+ {[%clk 0:00:19.2]} 38. Kh3 {[%clk 0:00:04]} 38...
Rb3+ {[%clk 0:00:19.7]} 39. Kh2 {[%clk 0:00:04.7]} 39... Rxa3 {[%clk 0:00:20.1]}
40. Re1 {[%clk 0:00:05]} 40... Ra2+ {[%clk 0:00:20.1]} 41. Kg3 {[%clk
0:00:05.2]} 41... Ra3+ {[%clk 0:00:20.3]} 42. Kh2 {[%clk 0:00:04.9]} 42... a4
{[%clk 0:00:20.3]} 43. Re7 {[%clk 0:00:05]} 43... Rc3 {[%clk 0:00:16.3]} 44. Ra7
{[%clk 0:00:05.4]} 44... a3 {[%clk 0:00:16.6]} 45. Nh3 {[%clk 0:00:05.6]} 45...
a2 {[%clk 0:00:14]} 46. Nf4 {[%clk 0:00:06.3]} 46... Rc1 {[%clk 0:00:09.5]} 47.
Nxd5 {[%clk 0:00:06.6]} 47... a1=Q {[%clk 0:00:09.6]} 48. Rxa1 {[%clk
0:00:07.5]} 48... Rxa1 {[%clk 0:00:10]} 49. Ne3 {[%clk 0:00:08.1]} 49... Ra3
{[%clk 0:00:08.3]} 50. Ng2 {[%clk 0:00:09]} 50... c5 {[%clk 0:00:08.3]} 51. h5
{[%clk 0:00:09.4]} 51... gxh5 {[%clk 0:00:08.3]} 52. gxh5 {[%clk 0:00:10.3]}
52... Kh6 {[%clk 0:00:08.7]} 53. Nf4 {[%clk 0:00:11.2]} 53... c4 {[%clk
0:00:08.1]} 54. Nd5 {[%clk 0:00:12.1]} 54... c3 {[%clk 0:00:06.4]} 55. Ne3
{[%clk 0:00:12.8]} 55... c2 {[%clk 0:00:06.2]} 56. Nf5+ {[%clk 0:00:13.7]} 56...
Kh7 {[%clk 0:00:06]} 57. Ng3 {[%clk 0:00:14.6]} 57... c1=Q {[%clk 0:00:06.3]}
58. Nf5 {[%clk 0:00:14.9]} 58... Qf4+ {[%clk 0:00:06.4]} 59. Ng3 {[%clk
0:00:15.3]} 59... Qxg3+ {[%clk 0:00:06.5]} 0-1